fUSD/lending_fUSD_20250804
["ID","MTS","AMOUNT","RATE_DAILY","PERIOD"]
[377182202,1754268704456,-400.0,0.0005041,120]
[377182203,1754268704466,-151.0,0.0005041,120]
[377182204,1754268704475,-1676.12,0.0005041,120]
[377182205,1754268704485,-400.0,0.0005041,120]
[377182206,1754268704495,-400.0,0.0005041,120]
[377182207,1754268704504,-400.0,0.0005041,120]
[377182208,1754268704514,-400.0,0.0005041,120]
[377182209,1754268704523,-374.74624723,0.0005041,120]
[377182210,1754268704532,-907.07,0.0005041,120]
[377182211,1754268704543,-417.446691,0.0005041,120]
[377182212,1754268704553,-400.0,0.0005041,120]
[377182213,1754268704562,-400.0,0.0005041,120]
[377182214,1754268704572,-909.63,0.0005041,120]
[377182215,1754268704581,-1111.36,0.0005041,120]
[377182216,1754268704591,-400.0,0.0005041,120]
[377182217,1754268704603,-417.446691,0.0005041,120]
[377182218,1754268704620,-400.0,0.0005041,120]
[377182219,1754268704630,-673.74,0.0005041,120]
[377182220,1754268704639,-483.68,0.0005041,120]
[377182221,1754268704649,-864.65,0.0005041,60]
[377182222,1754268704659,-400.0,0.0005041,120]
[377182223,1754268704670,-400.0,0.0005041,120]
[377182224,1754268704680,-1503.61,0.0005041,120]
[377182225,1754268704694,-400.0,0.0005041,120]
[377182226,1754268704703,-400.0,0.0005041,120]
[377182227,1754268704714,-400.0,0.0005041,120]
[377182228,1754268704724,-400.0,0.0005041,120]
[377182229,1754268704733,-415.28,0.0005041,120]
[377182230,1754268704743,-434.63,0.0005041,120]
[377182231,1754268704752,-400.0,0.0005041,120]
[377182232,1754268704762,-478.68,0.0005041,120]
[377182233,1754268704862,-400.0,0.0005041,120]
[377182234,1754268704872,-762.05,0.0005041,120]
[377182235,1754268704882,-400.0,0.0005041,120]
[377182236,1754268704892,-151.0,0.0005041,120]
[377182237,1754268704902,-400.0,0.0005041,120]
[377182238,1754268704911,-400.0,0.0005041,120]
[377182239,1754268704921,-400.0,0.0005041,120]
[377182240,1754268704931,-400.0,0.0005041,120]
[377182241,1754268704940,-151.0,0.0005041,120]
[377182242,1754268704949,-867.68,0.0005041,120]
[377182243,1754268704959,-400.0,0.0005041,120]
[377182244,1754268704969,-400.0,0.0005041,120]
[377182245,1754268704979,-1529.64,0.0005041,120]
[377182246,1754268704989,-1514.52,0.0005041,120]
[377182247,1754268704998,-234.038804,0.0005041,120]
[377182248,1754268705008,-888.99,0.0005041,120]
[377182249,1754268705017,-400.0,0.0005041,120]
[377182250,1754268705027,-234.038804,0.0005041,120]
[377182251,1754268705037,-400.0,0.0005041,120]
[377182252,1754268705046,-400.0,0.0005041,120]
[377182253,1754268705056,-1572.71,0.0005041,120]
[377182254,1754268705066,-400.0,0.0005041,120]
[377182255,1754268705076,-400.0,0.0005041,120]
[377182256,1754268705086,-667.29,0.0005041,120]
[377182257,1754268705095,-400.0,0.0005041,120]
[377182258,1754268705106,-400.0,0.0005041,120]
[377182259,1754268705115,-400.0,0.0005041,120]
[377182260,1754268705125,-400.0,0.0005041,120]
[377182261,1754268705135,-560.16,0.0005041,120]
[377182262,1754268705144,-974.46,0.0005041,120]
[377182263,1754268705153,-4405.19,0.0005041,120]
[377182264,1754268705163,-847.66,0.0005041,120]
[377182265,1754268705172,-400.0,0.0005041,120]
[377182266,1754268705181,-1044.37,0.0005041,120]
[377182267,1754268705191,-1027.62,0.0005041,120]
[377182268,1754268705200,-400.0,0.0005041,120]
[377182269,1754268705210,-400.0,0.0005041,120]
[377182270,1754268705219,-400.0,0.0005041,120]
[377182271,1754268705228,-151.0,0.0005041,120]
[377182272,1754268705237,-400.0,0.0005041,120]
[377182273,1754268705247,-400.0,0.0005041,120]
[377182274,1754268705257,-411.34,0.0005041,120]
[377182275,1754268705266,-247.269414,0.0005041,120]
[377182276,1754268705275,-773.44,0.0005041,120]
[377182277,1754268705284,-400.0,0.0005041,120]
[377182278,1754268705294,-1164.51,0.0005041,120]
[377182279,1754268705303,-400.0,0.0005041,120]
[377182280,1754268705312,-952.78,0.0005041,120]
[377182281,1754268705321,-400.0,0.0005041,120]
[377182282,1754268705330,-247.269414,0.0005041,120]
[377182283,1754268705339,-400.0,0.0005041,120]
[377182284,1754268705349,-400.0,0.0005041,120]
[377182285,1754268705360,-681.3,0.0005041,120]
[377182286,1754268705370,-400.0,0.0005041,120]
[377182287,1754268705380,-1226.55,0.0005041,120]
[377182288,1754268705389,-1342.41,0.0005041,30]
[377182289,1754268705398,-400.0,0.0005041,120]
[377182290,1754268705407,-400.0,0.0005041,120]
[377182291,1754268705417,-1018.3,0.0005041,120]
[377182292,1754268705426,-400.0,0.0005041,120]
[377182293,1754268705435,-400.0,0.0005041,120]
[377182294,1754268705445,-400.0,0.0005041,120]
[377182295,1754268705454,-400.0,0.0005041,120]
[377182296,1754268705464,-593.66,0.0005041,120]
[377182297,1754268705474,-621.0,0.0005041,120]
[377182298,1754268705483,-409.03603571,0.0005041,120]
[377182299,1754268705491,-1037.22,0.0005041,120]
[377182300,1754268705501,-613.4,0.0005041,120]
[377182301,1754268705510,-400.0,0.0005041,120]
[377182302,1754268705519,-400.0,0.0005041,120]
[377182303,1754268705529,-665.48,0.0005041,120]
[377182304,1754268705539,-1384.85,0.0005041,120]
[377182305,1754268705548,-512.74,0.0005041,120]
[377182306,1754268705557,-400.0,0.0005041,120]
[377182307,1754268705567,-400.0,0.0005041,120]
[377182308,1754268705576,-400.0,0.0005041,120]
[377182309,1754268705586,-400.0,0.0005041,120]
[377182310,1754268705595,-1250.2,0.0005041,120]
[377182311,1754268705605,-400.0,0.0005041,120]
[377182312,1754268705615,-400.0,0.0005041,120]
[377182313,1754268705624,-396.18591254,0.0005041,120]
[377182314,1754268705633,-1796.88,0.0005041,120]
[377182315,1754268705642,-754.08,0.0005041,120]
[377182316,1754268705652,-400.0,0.0005041,120]
[377182317,1754268705662,-851.82,0.0005041,120]
[377182318,1754268705672,-533.01,0.0005041,120]
[377182319,1754268705682,-275.88113,0.0005041,120]
[377182320,1754268705694,-530.85,0.0005041,120]
[377182321,1754268705703,-400.0,0.0005041,120]
[377182322,1754268705712,-400.0,0.0005041,120]
[377182323,1754268705723,-668.86,0.0005041,120]
[377182324,1754268705735,-1655.2,0.0005041,120]
[377182325,1754268705744,-400.0,0.0005041,120]
[377182326,1754268705753,-400.0,0.0005041,120]
[377182327,1754268705765,-400.0,0.0005041,120]
[377182328,1754268705775,-427.9,0.0005041,120]
[377182329,1754268705784,-414.02,0.0005041,120]
[377182330,1754268705793,-928.38,0.0005041,120]
[377182331,1754268705802,-271.700872,0.0005041,120]
[377182332,1754268705811,-461.348579,0.0005041,120]
[377182333,1754268705821,-527.59190386,0.0005041,120]
[377182334,1754268705830,-461.348579,0.0005041,120]
[377182335,1754268705847,-400.0,0.0005041,120]
[377182336,1754268705858,-400.0,0.0005041,120]
[377182337,1754268705868,-400.0,0.0005041,120]
[377182338,1754268705877,-400.0,0.0005041,120]
[377182339,1754268705887,-400.0,0.0005041,7]
[377182340,1754268705896,-400.0,0.0005041,120]
[377182341,1754268705906,-400.0,0.0005041,120]
[377182342,1754268705915,-400.0,0.0005041,120]
[377182343,1754268705925,-1098.74,0.0005041,120]
[377182344,1754268705934,-749.65,0.0005041,120]
[377182345,1754268705944,-1053.29,0.0005041,120]
[377182346,1754268705955,-400.0,0.0005041,120]
[377182347,1754268705964,-400.0,0.0005041,120]
[377182348,1754268705974,-778.27,0.0005041,120]
[377182349,1754268705983,-400.0,0.0005041,120]
[377182350,1754268705992,-901.5,0.0005041,120]
[377182351,1754268706001,-820.28,0.0005041,120]
[377182352,1754268706010,-400.0,0.0005041,120]
[377182353,1754268706019,-400.0,0.0005041,120]
[377182354,1754268706029,-400.0,0.0005041,120]
[377182355,1754268706038,-400.0,0.0005041,120]
[377182356,1754268706047,-533.79,0.0005041,120]
[377182357,1754268706057,-400.0,0.0005041,120]
[377182358,1754268706067,-168.395824,0.0005041,120]
[377182359,1754268706076,-494.87,0.0005041,120]
[377182360,1754268706085,-400.0,0.0005041,120]
[377182361,1754268706095,-813.08,0.0005041,120]
[377182362,1754268706105,-1446.37,0.0005041,120]
[377182363,1754268706114,-400.0,0.0005041,120]
[377182364,1754268706124,-400.0,0.0005041,120]
[377182365,1754268706133,-168.395824,0.0005041,120]
[377182366,1754268706143,-400.0,0.0005041,120]
[377182367,1754268706153,-225.704179,0.0005041,120]
[377182368,1754268706163,-629.0,0.0005041,120]
[377182369,1754268706172,-639.97,0.0005041,120]
[377182370,1754268706181,-993.99,0.0005041,120]
[377182371,1754268706191,-225.704179,0.0005041,120]
[377182372,1754268706200,-720.19,0.0005041,120]
[377182373,1754268706209,-667.87,0.0005041,60]
[377182374,1754268706219,-400.0,0.0005041,120]
[377182375,1754268706228,-400.0,0.0005041,120]
[377182376,1754268706237,-400.0,0.0005041,120]
[377182377,1754268706246,-400.0,0.0005041,120]
[377182378,1754268706256,-220.556036,0.0005041,120]
[377182379,1754268706264,-1042.81,0.0005041,120]
[377182380,1754268706273,-1607.03,0.0005041,120]
[377182381,1754268706283,-400.0,0.0005041,120]
[377182382,1754268706291,-151.0,0.0005041,120]
[377182383,1754268706301,-400.0,0.0005041,120]
[377182384,1754268706310,-400.0,0.0005041,120]
[377182385,1754268706320,-220.556036,0.0005041,120]
[377182386,1754268706328,-693.25,0.0005041,120]
[377182387,1754268706338,-791.76,0.0005041,120]
[377182388,1754268706347,-400.0,0.0005041,120]
[377182389,1754268706357,-902.83,0.0005041,120]
[377182390,1754268706366,-400.0,0.0005041,120]
[377182391,1754268706376,-223.149411,0.0005041,120]
[377182392,1754268706385,-400.0,0.0005041,120]
[377182393,1754268706394,-400.0,0.0005041,120]
[377182394,1754268706403,-223.149411,0.0005041,120]
[377182395,1754268706412,-562.43,0.0005041,120]
[377182396,1754268706422,-715.25,0.0005041,120]
[377182397,1754268706432,-362.18065642,0.0005041,120]
[377182398,1754268706441,-1235.78,0.0005041,120]
[377182399,1754268706451,-400.0,0.0005041,120]
[377182400,1754268706460,-418.35,0.0005041,120]
[377182401,1754268706470,-882.13,0.0005041,120]
[377182402,1754268706479,-400.0,0.0005041,120]
[377182403,1754268706488,-400.0,0.0005041,120]
[377182404,1754268706497,-400.0,0.0005041,120]
[377182405,1754268706507,-400.0,0.0005041,120]
[377182406,1754268706516,-426.62,0.0005041,120]
[377182407,1754268706525,-400.0,0.0005041,120]
[377182408,1754268706535,-400.0,0.0005041,120]
[377182409,1754268706544,-1619.25,0.0005041,120]
[377182410,1754268706553,-400.0,0.0005041,120]
[377182411,1754268706563,-1436.52,0.0005041,120]
[377182412,1754268706573,-835.63,0.0005041,120]
[377182413,1754268706583,-400.0,0.0005041,120]
[377182414,1754268706594,-400.0,0.0005041,120]
[377182415,1754268706603,-400.0,0.0005041,120]
[377182416,1754268706614,-151.0,0.0005041,120]
[377182417,1754268706624,-894.51,0.0005041,120]
[377182418,1754268706634,-621.2,0.0005041,120]
[377182419,1754268706644,-1018.59,0.0005041,120]
[377182420,1754268706656,-1373.98,0.0005041,120]
[377182421,1754268706666,-191.19674036,0.0005041,120]
[377182422,1754268706676,-456.11,0.0005041,120]
[377182423,1754268706687,-881.26,0.0005041,120]
[377182424,1754268706697,-1531.36,0.0005041,120]
[377182425,1754268706707,-400.0,0.0005041,120]
[377182426,1754268706716,-853.22,0.0005041,120]
[377182427,1754268706727,-321.89080223,0.0005041,120]
[377182428,1754268706737,-1010.93,0.0005041,120]
[377182429,1754268706746,-652.92,0.0005041,120]
[377182430,1754268706755,-1008.77,0.0005041,120]
[377182431,1754268706765,-447.52,0.0005041,120]
[377182432,1754268706774,-400.0,0.0005041,120]
[377182433,1754268706784,-400.0,0.0005041,120]
[377182434,1754268706793,-400.0,0.0005041,120]
[377182435,1754268706803,-342.70440931,0.0005041,120]
[377182436,1754268706813,-1051.17,0.0005041,120]
[377182437,1754268706823,-400.0,0.0005041,120]
[377182438,1754268706832,-1093.28,0.0005041,120]
[377182439,1754268706842,-400.0,0.0005041,120]
[377182440,1754268706851,-1544.86,0.0005041,120]
[377182441,1754268706864,-702.82,0.0005041,120]
[377182442,1754268706873,-544.8,0.0005041,120]
[377182443,1754268706884,-400.0,0.0005041,120]
[377182444,1754268706894,-400.0,0.0005041,120]
[377182445,1754268706903,-552.48,0.0005041,120]
[377182446,1754268706914,-400.0,0.0005041,120]
[377182447,1754268706923,-400.0,0.0005041,120]
[377182448,1754268706933,-1553.31,0.0005041,120]
[377182449,1754268706942,-1124.67,0.0005041,120]
[377182450,1754268706952,-400.0,0.0005041,120]
[377182451,1754268706961,-400.0,0.0005041,120]
[377182452,1754268706971,-798.23,0.0005041,120]
[377182453,1754268706981,-400.0,0.0005041,120]
[377182454,1754268706990,-608.06,0.0005041,120]
[377182455,1754268707000,-1527.9,0.0005041,120]
[377182456,1754268707010,-400.0,0.0005041,120]
[377182457,1754268707019,-947.85,0.0005041,120]
[377182458,1754268707029,-400.0,0.0005041,120]
[377182459,1754268707039,-981.29,0.0005041,120]
[377182460,1754268707048,-400.0,0.0005041,120]
[377182461,1754268707058,-400.0,0.0005041,120]
[377182462,1754268707067,-987.27,0.0005041,120]
[377182463,1754268707077,-400.0,0.0005041,120]
[377182464,1754268707087,-400.0,0.0005041,120]
[377182465,1754268707096,-520.59,0.0005041,120]
[377182466,1754268707107,-749.39,0.0005041,120]
[377182467,1754268707116,-400.0,0.0005041,120]
[377182468,1754268707126,-977.04,0.0005041,120]
[377182469,1754268707135,-1111.61,0.0005041,120]
[377182470,1754268707145,-400.0,0.0005041,120]
[377182471,1754268707154,-400.0,0.0005041,120]
[377182472,1754268707164,-400.0,0.0005041,120]
[377182473,1754268707174,-460.0,0.0005041,120]
[377182474,1754268707183,-400.0,0.0005041,120]
[377182475,1754268707192,-858.32,0.0005041,120]
[377182476,1754268707202,-400.0,0.0005041,120]
[377182477,1754268707211,-400.0,0.0005041,120]
[377182478,1754268707220,-524.03,0.0005041,120]
[377182479,1754268707240,-400.0,0.0005041,120]
[377182480,1754268707250,-400.0,0.0005041,120]
[377182481,1754268707259,-400.0,0.0005041,120]
[377182482,1754268707269,-400.0,0.0005041,120]
[377182483,1754268707279,-1637.94,0.0005041,120]
[377182484,1754268707289,-637.78,0.0005041,120]
[377182485,1754268707299,-1658.43,0.0005041,120]
[377182486,1754268707308,-400.0,0.0005041,120]
[377182487,1754268707318,-400.0,0.0005041,120]
[377182488,1754268707328,-400.0,0.0005041,120]
[377182489,1754268707338,-483.41,0.0005041,120]
[377182490,1754268707347,-4463.09,0.0005041,120]
[377182491,1754268707359,-598.15,0.0005041,120]
[377182492,1754268707369,-400.0,0.0005041,120]
[377182493,1754268707379,-400.0,0.0005041,120]
[377182494,1754268707389,-1021.73,0.0005041,120]
[377182495,1754268707399,-400.0,0.0005041,120]
[377182496,1754268707409,-400.0,0.0005041,120]
[377182497,1754268707419,-496.85,0.0005041,120]
[377182498,1754268707428,-754.89,0.0005041,120]
[377182499,1754268707438,-588.48,0.0005041,120]
[377182500,1754268707448,-400.0,0.0005041,120]
[377182501,1754268707457,-2668.08,0.0005041,120]
[377182502,1754268707467,-1209.71,0.0005041,120]
[377182503,1754268707477,-1584.6,0.0005041,120]
[377182504,1754268707487,-400.0,0.0005041,120]
[377182505,1754268707496,-400.0,0.0005041,120]
[377182506,1754268707505,-1362.53,0.0005041,120]
[377182507,1754268707515,-1522.49,0.0005041,120]
[377182508,1754268707524,-400.0,0.0005041,120]
[377182509,1754268707534,-647.61,0.0005041,120]
[377182510,1754268707543,-801.6,0.0005041,120]
[377182511,1754268707552,-1682.47,0.0005041,120]
[377182512,1754268707562,-400.0,0.0005041,120]
[377182513,1754268707572,-2375.94,0.0005041,120]
[377182514,1754268707582,-856.16,0.0005041,120]
[377182515,1754268707591,-1262.21,0.0005041,120]
[377182516,1754268707602,-1150.07,0.0005041,120]
[377182517,1754268707613,-400.0,0.0005041,120]
[377182518,1754268707624,-1014.08,0.0005041,120]
[377182519,1754268707634,-400.0,0.0005041,120]
[377182520,1754268707644,-604.67,0.0005041,120]
[377182521,1754268707654,-400.0,0.0005041,120]
[377182522,1754268707665,-776.57,0.0005041,120]
[377182523,1754268707675,-400.0,0.0005041,120]
[377182524,1754268707687,-496.71,0.0005041,120]
[377182525,1754268707700,-400.0,0.0005041,120]
[377182526,1754268707710,-633.78,0.0005041,120]
[377182527,1754268707720,-400.0,0.0005041,120]
[377182528,1754268707731,-3407.72,0.0005041,120]
[377182529,1754268707741,-1700.65,0.0005041,120]
[377182530,1754268707751,-860.5,0.0005041,120]
[377182531,1754268707762,-400.0,0.0005041,120]
[377182532,1754268707773,-400.0,0.0005041,120]
[377182533,1754268707782,-400.0,0.0005041,120]
[377182534,1754268707793,-5122.26,0.0005041,118]
[377182535,1754268707803,-400.0,0.0005041,120]
[377182536,1754268707813,-400.0,0.0005041,120]
[377182537,1754268707823,-400.0,0.0005041,120]
[377182538,1754268707832,-400.0,0.0005041,120]
[377182539,1754268707842,-400.0,0.0005041,120]
[377182540,1754268707852,-400.0,0.0005041,120]
[377182541,1754268707862,-400.0,0.0005041,120]
[377182542,1754268707872,-400.0,0.0005041,120]
[377182543,1754268707882,-400.0,0.0005041,120]
[377182544,1754268707891,-400.0,0.0005041,120]
[377182545,1754268707901,-400.0,0.0005041,120]
[377182546,1754268707911,-400.0,0.0005041,120]
[377182547,1754268707920,-400.0,0.0005041,120]
[377182548,1754268707930,-2275.99,0.0005041,120]
[377182549,1754268707939,-400.0,0.0005041,120]
[377182550,1754268707949,-400.0,0.0005041,120]
[377182551,1754268707960,-400.0,0.0005041,120]
[377182552,1754268707971,-400.0,0.0005041,120]
[377182553,1754268707981,-747.61,0.0005041,120]
[377182554,1754268707991,-400.0,0.0005041,120]
[377182555,1754268708000,-6663.96,0.0005041,120]
[377182556,1754268708010,-295.245203,0.0005041,120]
[377182557,1754268708019,-400.0,0.0005041,120]
[377182558,1754268708029,-504.1,0.0005041,120]
[377182559,1754268708040,-400.0,0.0005041,120]
[377182560,1754268708050,-422.64,0.0005041,120]
[377182561,1754268708060,-164.78824926,0.0005041,120]
[377182562,1754268708070,-400.0,0.0005041,120]
[377182563,1754268708081,-151.0,0.0005041,120]
[377182564,1754268708091,-295.245203,0.0005041,120]
[377182565,1754268708102,-400.0,0.0005041,120]
[377182566,1754268708112,-759.38,0.0005041,120]
[377182567,1754268708122,-293.78499555,0.0005041,120]
[377182568,1754268708132,-400.0,0.0005041,120]
[377182569,1754268708142,-1263.16,0.0005041,120]
[377182570,1754268708151,-1400.47,0.0005041,120]
[377182571,1754268708162,-400.0,0.0005041,120]
[377182572,1754268708172,-1244.75,0.0005041,120]
[377182573,1754268708183,-965.49,0.0005041,120]
[377182574,1754268708192,-1286.36,0.0005041,120]
[377182575,1754268708202,-151.0,0.0005041,120]
[377182576,1754268708212,-400.0,0.0005041,120]
[377182577,1754268708224,-911.39,0.0005041,120]
[377182578,1754268708235,-400.0,0.0005041,120]
[377182579,1754268708244,-151.0,0.0005041,120]
[377182580,1754268708255,-151.0,0.0005041,120]
[377182581,1754268708265,-400.0,0.0005041,120]
[377182582,1754268708275,-942.83,0.0005041,120]
[377182583,1754268708286,-400.0,0.0005041,120]
[377182584,1754268708295,-89208.25,0.0005041,120]
[377182585,1754268708305,-151.0,0.0005041,120]
[377182586,1754268708315,-842.57,0.0005041,120]
[377182587,1754268708325,-400.0,0.0005041,120]
[377182588,1754268708336,-400.0,0.0005041,120]
[377182589,1754268708346,-400.0,0.0005041,120]
[377182590,1754268708356,-852.42,0.0005041,120]
[377182591,1754268708367,-1359.66,0.0005041,120]
[377182592,1754268708377,-400.0,0.0005041,120]
[377182593,1754268708387,-400.0,0.0005041,120]
[377182594,1754268708397,-899.08,0.0005041,120]
[377182595,1754268708407,-1253.81,0.0005041,120]
[377182596,1754268708417,-1413.4,0.0005041,120]
[377182597,1754268708427,-400.0,0.0005041,120]
[377182598,1754268708437,-400.0,0.0005041,120]
[377182599,1754268708447,-643.48,0.0005041,120]
[377182600,1754268708457,-469.57,0.0005041,120]
[377182601,1754268708467,-400.0,0.0005041,120]
[377182602,1754268708478,-498.37,0.0005041,120]
[377182603,1754268708487,-480.76,0.0005041,120]
[377182604,1754268708497,-1333.92,0.0005041,120]
[377182605,1754268708507,-1637.38,0.0005041,120]
[377182606,1754268708517,-400.18,0.0005041,120]
[377182607,1754268708526,-400.0,0.0005041,120]
[377182608,1754268708536,-1605.6,0.0005041,120]
[377182609,1754268708546,-1008.71,0.0005041,120]
[377182610,1754268708556,-416.97804152,0.0005041,120]
[377182611,1754268708566,-400.0,0.0005041,120]
[377182612,1754268708781,-923.19,0.0005041,120]
[377182613,1754268708810,-400.0,0.0005041,120]
[377182614,1754268708820,-400.0,0.0005041,120]
[377182615,1754268708830,-1382.88,0.0005041,120]
[377182616,1754268708839,-2537.67,0.0005041,120]
[377182617,1754268708849,-425.3,0.0005041,120]
[377182618,1754268708860,-531.95,0.0005041,120]
[377182619,1754268708870,-400.0,0.0005041,120]
[377182620,1754268708880,-722.7,0.0005041,120]
[377182621,1754268708890,-455.57,0.0005041,120]
[377182622,1754268708900,-400.0,0.0005041,120]
[377182623,1754268708910,-400.0,0.0005041,120]
[377182624,1754268708920,-400.0,0.0005041,120]
[377182625,1754268708930,-400.0,0.0005041,120]
[377182626,1754268708941,-400.0,0.0005041,120]
[377182627,1754268708950,-1556.65,0.0005041,120]
[377182628,1754268708960,-400.0,0.0005041,120]
[377182629,1754268708970,-2962.11,0.0005041,120]
[377182630,1754268708980,-669.47,0.0005041,120]
[377182631,1754268708990,-520.555924,0.0005041,120]
[377182632,1754268708999,-772.23,0.0005041,120]
[377182633,1754268709009,-1030.73,0.0005041,120]
[377182634,1754268709019,-400.0,0.0005041,120]
[377182635,1754268709028,-400.0,0.0005041,120]
[377182636,1754268709038,-1002.34,0.0005041,120]
[377182637,1754268709048,-400.0,0.0005041,120]
[377182638,1754268709057,-400.0,0.0005041,120]
[377182639,1754268709067,-6910.03,0.0005041,120]
[377182640,1754268709079,-450.71,0.0005041,120]
[377182641,1754268709089,-520.555924,0.0005041,120]
[377182642,1754268709099,-652.98,0.0005041,120]
[377182643,1754268709108,-400.0,0.0005041,120]
[377182644,1754268709118,-493.79,0.0005041,120]
[377182645,1754268709128,-400.0,0.0005041,120]
[377182646,1754268709139,-7390.45,0.0005041,120]
[377182647,1754268709148,-550.23,0.0005041,120]
[377182648,1754268709158,-401.95397005,0.0005041,120]
[377182649,1754268709168,-1493.06,0.0005041,120]
[377182650,1754268709178,-400.0,0.0005041,120]
[377182651,1754268709188,-400.0,0.0005041,120]
[377182652,1754268709198,-400.0,0.0005041,120]
[377182653,1754268709207,-879.94,0.0005041,120]
[377182654,1754268709216,-400.0,0.0005041,120]
[377182655,1754268709226,-400.0,0.0005041,120]
[377182656,1754268709235,-1569.23,0.0005041,120]
[377182657,1754268709251,-400.0,0.0005041,120]
[377182658,1754268709261,-500.44,0.0005041,120]
[377182659,1754268709270,-151.0,0.0005041,90]
[377182660,1754268709279,-558.0,0.0005041,120]
[377182661,1754268709288,-400.0,0.0005041,120]
[377182662,1754268709297,-986.16,0.0005041,120]
[377182663,1754268709306,-400.0,0.0005041,120]
[377182664,1754268709316,-790.99,0.0005041,120]
[377182665,1754268709325,-400.0,0.0005041,120]
[377182666,1754268709335,-400.0,0.0005041,120]
[377182667,1754268709344,-400.0,0.0005041,120]
[377182668,1754268709353,-400.0,0.0005041,120]
[377182669,1754268709365,-400.0,0.0005041,120]
[377182670,1754268709374,-1060.73,0.0005041,120]
[377182671,1754268709383,-400.0,0.0005041,120]
[377182672,1754268709393,-1434.71,0.0005041,120]
[377182673,1754268709402,-668.69,0.0005041,120]
[377182674,1754268709411,-400.0,0.0005041,120]
[377182675,1754268709420,-852.72,0.0005041,120]
[377182676,1754268709429,-400.0,0.0005041,120]
[377182677,1754268709438,-607.24,0.0005041,120]
[377182678,1754268709447,-400.0,0.0005041,120]
[377182679,1754268709456,-435.18,0.0005041,120]
[377182680,1754268709465,-400.0,0.0005041,120]
[377182681,1754268709474,-400.0,0.0005041,120]
[377182682,1754268709483,-1703.79,0.0005041,120]
[377182683,1754268709492,-400.0,0.0005041,120]
[377182684,1754268709501,-400.0,0.0005041,120]
[377182685,1754268709511,-400.0,0.0005041,120]
[377182686,1754268709521,-1017.05,0.0005041,120]
[377182687,1754268709531,-841.35,0.0005041,120]
[377182688,1754268709540,-400.0,0.0005041,120]
[377182689,1754268709550,-400.0,0.0005041,120]
[377182690,1754268709558,-400.0,0.0005041,120]
[377182691,1754268709567,-757.28,0.0005041,120]
[377182692,1754268709577,-400.0,0.0005041,120]
[377182693,1754268709586,-995.12,0.0005041,120]
[377182694,1754268709595,-7585.79,0.0005041,120]
[377182695,1754268709604,-1753.62,0.0005041,120]
[377182696,1754268709614,-425.9,0.0005041,120]
[377182697,1754268709624,-400.0,0.0005041,120]
[377182698,1754268709633,-400.0,0.0005041,120]
[377182699,1754268709643,-400.0,0.0005041,120]
[377182700,1754268709652,-400.0,0.0005041,120]
[377182701,1754268709662,-400.0,0.0005041,120]